[Event "GrandPrix_29.05"]
[Site "Chess.com"]
[Date "2020.05.29"]
[Round "8"]
[White "hypert"]
[Black "VitaliyBernadskiy"]
[Result "0-1"]
[WhiteElo "2154"]
[BlackElo "2327"]
[TimeControl "600+2"]
[EndTime "13:01:12 PDT"]
[Termination "VitaliyBernadskiy won by resignation"]

1. e4 {[%clk 0:10:01.9]} 1... c5 {[%clk 0:09:50.3]} 2. Nf3 {[%clk 0:10:01.5]}
2... d6 {[%clk 0:09:50.4]} 3. Bb5+ {[%clk 0:10:01.1]} 3... Nd7 {[%clk
0:09:50.7]} 4. O-O {[%clk 0:09:48.8]} 4... Nf6 {[%clk 0:09:49.9]} 5. Nc3 {[%clk
0:09:31.7]} 5... a6 {[%clk 0:09:49.7]} 6. Bxd7+ {[%clk 0:09:32.5]} 6... Bxd7
{[%clk 0:09:49.9]} 7. e5 {[%clk 0:09:34.1]} 7... dxe5 {[%clk 0:09:50.6]} 8. Nxe5
{[%clk 0:09:36]} 8... e6 {[%clk 0:09:50.5]} 9. d4 {[%clk 0:09:21.1]} 9... Be7
{[%clk 0:09:46.7]} 10. dxc5 {[%clk 0:08:50.6]} 10... Bxc5 {[%clk 0:09:46.2]} 11.
Bg5 {[%clk 0:08:44.5]} 11... Qc7 {[%clk 0:09:40.1]} 12. Bxf6 {[%clk 0:07:19.5]}
12... gxf6 {[%clk 0:09:42]} 13. Nxd7 {[%clk 0:07:20.9]} 13... Qxd7 {[%clk
0:09:42.8]} 14. Qf3 {[%clk 0:06:51.9]} 14... f5 {[%clk 0:09:42.6]} 15. Rad1
{[%clk 0:06:47.9]} 15... Qc7 {[%clk 0:09:43.9]} 16. Ne2 {[%clk 0:06:37.2]} 16...
Rg8 {[%clk 0:09:09.1]} 17. c3 {[%clk 0:06:22.4]} 17... Rc8 {[%clk 0:09:02.5]}
18. Nd4 {[%clk 0:06:07.1]} 18... Kf8 {[%clk 0:08:37.2]} 19. Rfe1 {[%clk
0:06:03.9]} 19... Kg7 {[%clk 0:08:33.1]} 20. Nb3 {[%clk 0:05:43.5]} 20... Bd6
{[%clk 0:08:29.6]} 21. h3 {[%clk 0:05:43.2]} 21... Be5 {[%clk 0:08:24.6]} 22.
Rd3 {[%clk 0:05:37.2]} 22... Rcd8 {[%clk 0:08:19]} 23. Red1 {[%clk 0:05:37.7]}
23... Rxd3 {[%clk 0:08:19.4]} 24. Rxd3 {[%clk 0:05:26.2]} 24... Rd8 {[%clk
0:08:18.3]} 25. Rxd8 {[%clk 0:05:14]} 25... Qxd8 {[%clk 0:08:20.2]} 26. Kf1
{[%clk 0:05:14.7]} 26... b6 {[%clk 0:08:08.3]} 27. Ke2 {[%clk 0:05:11.5]} 27...
a5 {[%clk 0:08:09.1]} 28. Qe3 {[%clk 0:05:00.1]} 28... Bf6 {[%clk 0:08:07.6]}
29. Nd2 {[%clk 0:04:51.3]} 29... b5 {[%clk 0:08:05]} 30. Qg3+ {[%clk 0:04:36.4]}
30... Kh6 {[%clk 0:08:00.8]} 31. Qd3 {[%clk 0:04:35.9]} 31... Qb8 {[%clk
0:07:56.8]} 32. b3 {[%clk 0:04:22]} 32... Qe5+ {[%clk 0:07:53.9]} 33. Qe3+
{[%clk 0:04:17.3]} 33... Qxe3+ {[%clk 0:07:54.7]} 34. Kxe3 {[%clk 0:04:19.2]}
34... Bxc3 {[%clk 0:07:56]} 35. Nf3 {[%clk 0:04:19.4]} 35... e5 {[%clk
0:07:43.1]} 36. g4 {[%clk 0:03:48.1]} 36... e4 {[%clk 0:07:28.3]} 37. Nh2 {[%clk
0:02:54]} 37... Kg5 {[%clk 0:07:18.4]} 38. gxf5 {[%clk 0:02:04.8]} 38... Kxf5
{[%clk 0:07:20.3]} 39. f3 {[%clk 0:02:00.5]} 39... exf3 {[%clk 0:07:12.4]} 40.
Nxf3 {[%clk 0:01:58.8]} 40... Bf6 {[%clk 0:07:08.4]} 41. a4 {[%clk 0:01:57.4]}
41... bxa4 {[%clk 0:06:59.1]} 42. bxa4 {[%clk 0:01:59.3]} 42... h6 {[%clk
0:06:59.6]} 43. Nh2 {[%clk 0:01:16.4]} 43... Bd8 {[%clk 0:06:43]} 44. Nf1 {[%clk
0:01:03.6]} 44... Bg5+ {[%clk 0:06:41.8]} 45. Kf3 {[%clk 0:00:19.6]} 45... Bf4
{[%clk 0:06:40.6]} 46. Ke2 {[%clk 0:00:20.5]} 46... Ke4 {[%clk 0:06:41.1]} 47.
Kf2 {[%clk 0:00:21.8]} 47... h5 {[%clk 0:06:30.6]} 48. Ke2 {[%clk 0:00:21.1]}
48... h4 {[%clk 0:06:21.1]} 49. Kf2 {[%clk 0:00:22.2]} 49... Bc7 {[%clk
0:06:04.3]} 50. Nd2+ {[%clk 0:00:20.1]} 50... Kd3 {[%clk 0:05:32.5]} 51. Nf3
{[%clk 0:00:21]} 51... Bg3+ {[%clk 0:05:32.7]} 52. Kg2 {[%clk 0:00:19.7]} 52...
f6 {[%clk 0:05:31.6]} 53. Kf1 {[%clk 0:00:18.9]} 53... Kc4 {[%clk 0:05:21]} 54.
Ke2 {[%clk 0:00:17.6]} 54... Kb4 {[%clk 0:05:21.9]} 55. Kd3 {[%clk 0:00:18.8]}
55... Kxa4 {[%clk 0:05:23.3]} 56. Kc4 {[%clk 0:00:20.1]} 56... Ka3 {[%clk
0:05:24.6]} 57. Kc3 {[%clk 0:00:21.2]} 57... Bf2 {[%clk 0:05:21.6]} 58. Nh2
{[%clk 0:00:17.4]} 58... Be1+ {[%clk 0:05:17.5]} 59. Kc2 {[%clk 0:00:18.1]}
59... Kb4 {[%clk 0:05:17]} 60. Nf3 {[%clk 0:00:18.8]} 60... Bg3 {[%clk
0:05:17.9]} 61. Nd2 {[%clk 0:00:18.7]} 61... f5 {[%clk 0:05:17.5]} 62. Nf3
{[%clk 0:00:19]} 62... Kc4 {[%clk 0:05:18]} 63. Nd2+ {[%clk 0:00:15.6]} 63...
Kb5 {[%clk 0:05:11.1]} 64. Nf3 {[%clk 0:00:13.7]} 64... Kc5 {[%clk 0:05:12.4]}
65. Nd2 {[%clk 0:00:11.7]} 65... a4 {[%clk 0:05:13.6]} 66. Nf3 {[%clk
0:00:11.8]} 66... Kd5 {[%clk 0:05:14]} 67. Kd3 {[%clk 0:00:12.5]} 67... a3
{[%clk 0:05:14.5]} 68. Nd2 {[%clk 0:00:12.8]} 68... a2 {[%clk 0:05:15.3]} 69.
Nb3 {[%clk 0:00:13.9]} 69... Be5 {[%clk 0:05:16.4]} 70. Ke2 {[%clk 0:00:12.8]}
70... Kc4 {[%clk 0:05:11.4]} 71. Nd2+ {[%clk 0:00:09.9]} 71... Kb4 {[%clk
0:05:12.2]} 0-1

[Event "GrandPrix_29.05"]
[Site "Chess.com"]
[Date "2020.05.29"]
[Round "8"]
[White "Sunnika"]
[Black "redblizzard"]
[Result "1-0"]
[WhiteElo "2103"]
[BlackElo "1894"]
[TimeControl "600+2"]
[EndTime "13:01:25 PDT"]
[Termination "Sunnika won by checkmate"]

1. d4 {[%clk 0:10:01.9]} 1... Nf6 {[%clk 0:09:41.2]} 2. Nf3 {[%clk 0:10:00.8]}
2... g6 {[%clk 0:09:38.8]} 3. c3 {[%clk 0:10:01]} 3... Bg7 {[%clk 0:09:34.4]} 4.
Bg5 {[%clk 0:10:02.4]} 4... O-O {[%clk 0:09:29.2]} 5. Nbd2 {[%clk 0:10:03.5]}
5... d6 {[%clk 0:09:27.3]} 6. e4 {[%clk 0:10:04.5]} 6... Nbd7 {[%clk 0:09:28.3]}
7. Bc4 {[%clk 0:10:03.6]} 7... c6 {[%clk 0:09:05.9]} 8. a4 {[%clk 0:09:53.4]}
8... Qc7 {[%clk 0:08:56]} 9. O-O {[%clk 0:09:51.7]} 9... h6 {[%clk 0:08:46.3]}
10. Bh4 {[%clk 0:09:51.5]} 10... e5 {[%clk 0:08:45.6]} 11. dxe5 {[%clk
0:09:51.4]} 11... dxe5 {[%clk 0:08:42.6]} 12. a5 {[%clk 0:08:51.1]} 12... Nc5
{[%clk 0:08:11.5]} 13. Qe2 {[%clk 0:08:47.4]} 13... Ne6 {[%clk 0:08:02.6]} 14.
b4 {[%clk 0:07:48.7]} 14... Nf4 {[%clk 0:07:36.9]} 15. Qd1 {[%clk 0:07:49.7]}
15... Rd8 {[%clk 0:07:20.4]} 16. Qc2 {[%clk 0:07:48.5]} 16... Bg4 {[%clk
0:05:57.1]} 17. h3 {[%clk 0:07:43.2]} 17... Bxh3 {[%clk 0:05:41.5]} 18. gxh3
{[%clk 0:07:42.2]} 18... Qc8 {[%clk 0:04:22.8]} 19. Rfe1 {[%clk 0:07:01.5]}
19... Qxh3 {[%clk 0:04:19.6]} 20. Bf1 {[%clk 0:07:02.9]} 20... Qg4+ {[%clk
0:04:08.8]} 21. Bg3 {[%clk 0:07:01.8]} 21... N6h5 {[%clk 0:03:38.2]} 22. Nh2
{[%clk 0:07:01.1]} 22... Qg5 {[%clk 0:03:33.3]} 23. Ndf3 {[%clk 0:07:01.1]}
23... Qf6 {[%clk 0:03:23.3]} 24. Rad1 {[%clk 0:07:00.4]} 24... Re8 {[%clk
0:03:02.4]} 25. Rd7 {[%clk 0:06:13.8]} 25... g5 {[%clk 0:02:50]} 26. Bc4 {[%clk
0:05:42.2]} 26... Rf8 {[%clk 0:02:34.2]} 27. Qa2 {[%clk 0:05:20.2]} 27... Rad8
{[%clk 0:02:23.5]} 28. Red1 {[%clk 0:04:43.3]} 28... g4 {[%clk 0:01:54]} 29. Nh4
{[%clk 0:04:06.5]} 29... Nh3+ {[%clk 0:01:40.3]} 30. Kg2 {[%clk 0:03:55.9]}
30... N3f4+ {[%clk 0:01:11.2]} 31. Kh1 {[%clk 0:03:53.5]} 31... Nh3 {[%clk
0:00:49.5]} 32. Bxf7+ {[%clk 0:03:50.3]} 32... Rxf7 {[%clk 0:00:21.5]} 33. Rxd8+
{[%clk 0:03:42.4]} 33... Kh7 {[%clk 0:00:22.6]} 34. Nf5 {[%clk 0:03:38.3]} 34...
Ng5 {[%clk 0:00:14.2]} 35. R1d6 {[%clk 0:03:16.8]} 35... Qxf5 {[%clk 0:00:07.4]}
36. exf5 {[%clk 0:03:15.6]} 36... Rxf5 {[%clk 0:00:09.3]} 37. Qc2 {[%clk
0:03:11.2]} 37... e4 {[%clk 0:00:10.4]} 38. Nxg4 {[%clk 0:03:00.5]} 38... Rf3
{[%clk 0:00:07.3]} 39. Qa2 {[%clk 0:02:40.9]} 39... Nh3 {[%clk 0:00:03.5]} 40.
Qg8# {[%clk 0:02:40.4]} 1-0

[Event "GrandPrix_29.05"]
[Site "Chess.com"]
[Date "2020.05.29"]
[Round "8"]
[White "PotapovaM"]
[Black "wnstop"]
[Result "0-1"]
[WhiteElo "2152"]
[BlackElo "2182"]
[TimeControl "600+2"]
[EndTime "13:01:26 PDT"]
[Termination "wnstop won by resignation"]

1. d4 {[%clk 0:10:01.9]} 1... Nf6 {[%clk 0:09:59.3]} 2. c4 {[%clk 0:10:00.5]}
2... g6 {[%clk 0:09:59.8]} 3. Nc3 {[%clk 0:09:58.8]} 3... Bg7 {[%clk 0:09:58.7]}
4. e4 {[%clk 0:09:59.4]} 4... d6 {[%clk 0:09:59]} 5. h3 {[%clk 0:10:00.2]} 5...
O-O {[%clk 0:09:59.1]} 6. Be3 {[%clk 0:10:01.5]} 6... Na6 {[%clk 0:09:02]} 7.
Nf3 {[%clk 0:09:34.6]} 7... c5 {[%clk 0:08:42.7]} 8. d5 {[%clk 0:09:24.7]} 8...
e6 {[%clk 0:08:41]} 9. Bd3 {[%clk 0:09:25.8]} 9... Nc7 {[%clk 0:08:33.5]} 10.
dxe6 {[%clk 0:06:17.6]} 10... Nxe6 {[%clk 0:07:56]} 11. O-O {[%clk 0:06:15.4]}
11... Bd7 {[%clk 0:07:41.8]} 12. Qd2 {[%clk 0:06:05.6]} 12... Bc6 {[%clk
0:07:39.7]} 13. Nd5 {[%clk 0:05:54.7]} 13... Nd7 {[%clk 0:07:27.9]} 14. Rad1
{[%clk 0:05:23.2]} 14... Ne5 {[%clk 0:07:05.2]} 15. Nxe5 {[%clk 0:05:14.2]}
15... dxe5 {[%clk 0:07:07.1]} 16. a3 {[%clk 0:04:03.9]} 16... a5 {[%clk
0:06:53.6]} 17. b4 {[%clk 0:03:49.5]} 17... axb4 {[%clk 0:06:36.2]} 18. axb4
{[%clk 0:03:51.4]} 18... cxb4 {[%clk 0:06:34.7]} 19. Qxb4 {[%clk 0:03:41.4]}
19... Nd4 {[%clk 0:06:06.7]} 20. Bxd4 {[%clk 0:03:01]} 20... exd4 {[%clk
0:06:08.6]} 21. Rfe1 {[%clk 0:02:28.7]} 21... Kh8 {[%clk 0:06:02.7]} 22. f4
{[%clk 0:01:39.2]} 22... Qh4 {[%clk 0:06:01]} 23. Rf1 {[%clk 0:01:21.4]} 23...
Ra2 {[%clk 0:05:42.9]} 24. Rd2 {[%clk 0:01:18.6]} 24... Rfa8 {[%clk 0:05:23.3]}
25. Rxa2 {[%clk 0:00:51.3]} 25... Rxa2 {[%clk 0:05:25.2]} 26. Qd6 {[%clk
0:00:30.6]} 26... h5 {[%clk 0:04:55.2]} 27. f5 {[%clk 0:00:10.3]} 27... Bxd5
{[%clk 0:04:05.6]} 28. Qxd5 {[%clk 0:00:05.3]} 28... Qg3 {[%clk 0:03:58.6]} 29.
e5 {[%clk 0:00:04.2]} 29... Bxe5 {[%clk 0:03:01.2]} 30. Qd8+ {[%clk 0:00:04]}
30... Kg7 {[%clk 0:03:02]} 31. f6+ {[%clk 0:00:04.5]} 31... Kh7 {[%clk
0:02:23.4]} 32. Bxg6+ {[%clk 0:00:05.3]} 32... Qxg6 {[%clk 0:02:20.2]} 33. g4
{[%clk 0:00:03]} 33... Bh2+ {[%clk 0:02:18.3]} 34. Kh1 {[%clk 0:00:04]} 34...
Qe4+ {[%clk 0:02:19.7]} 0-1

[Event "GrandPrix_29.05"]
[Site "Chess.com"]
[Date "2020.05.29"]
[Round "8"]
[White "tianachess"]
[Black "Meri-Arabidze"]
[Result "0-1"]
[WhiteElo "2016"]
[BlackElo "1980"]
[TimeControl "600+2"]
[EndTime "13:01:30 PDT"]
[Termination "Meri-Arabidze won on time"]

1. d4 {[%clk 0:09:59.4]} 1... d5 {[%clk 0:10:00.6]} 2. c4 {[%clk 0:09:59.6]}
2... e6 {[%clk 0:10:01.9]} 3. Nc3 {[%clk 0:09:59.5]} 3... Nf6 {[%clk 0:10:02.7]}
4. Bg5 {[%clk 0:09:59.5]} 4... Nbd7 {[%clk 0:09:58.7]} 5. e3 {[%clk 0:09:59.8]}
5... Be7 {[%clk 0:09:59.5]} 6. cxd5 {[%clk 0:09:57.3]} 6... exd5 {[%clk
0:09:59.7]} 7. Bd3 {[%clk 0:09:48.9]} 7... c6 {[%clk 0:10:00.4]} 8. Nge2 {[%clk
0:09:48.4]} 8... Nf8 {[%clk 0:09:56.9]} 9. O-O {[%clk 0:09:42.7]} 9... Ne6
{[%clk 0:09:46]} 10. Bh4 {[%clk 0:09:40.1]} 10... O-O {[%clk 0:09:46.6]} 11. f3
{[%clk 0:09:37.7]} 11... g6 {[%clk 0:09:32.3]} 12. Bf2 {[%clk 0:09:14]} 12... b5
{[%clk 0:09:29.7]} 13. Qc2 {[%clk 0:09:09.9]} 13... Bd7 {[%clk 0:09:20.8]} 14.
h3 {[%clk 0:09:02.1]} 14... Rc8 {[%clk 0:08:50.8]} 15. e4 {[%clk 0:08:58.8]}
15... c5 {[%clk 0:08:20.5]} 16. Bxb5 {[%clk 0:08:24.4]} 16... Bxb5 {[%clk
0:08:05.2]} 17. Nxb5 {[%clk 0:08:17.5]} 17... cxd4 {[%clk 0:08:06.2]} 18. Qd3
{[%clk 0:07:55.3]} 18... dxe4 {[%clk 0:08:05.2]} 19. fxe4 {[%clk 0:07:54.9]}
19... a6 {[%clk 0:07:25.1]} 20. Nbxd4 {[%clk 0:06:56.8]} 20... Nc5 {[%clk
0:07:26]} 21. Qf3 {[%clk 0:06:35.7]} 21... Nfxe4 {[%clk 0:07:15.7]} 22. Be3
{[%clk 0:06:35]} 22... Ng5 {[%clk 0:06:20]} 23. Qg3 {[%clk 0:04:19.1]} 23...
Nce4 {[%clk 0:06:09.8]} 24. Qe1 {[%clk 0:03:27]} 24... h5 {[%clk 0:06:01.2]} 25.
Rd1 {[%clk 0:03:01.3]} 25... Qc7 {[%clk 0:05:50.9]} 26. Nf4 {[%clk 0:02:52.7]}
26... Qe5 {[%clk 0:05:30.9]} 27. h4 {[%clk 0:02:13.3]} 27... Nh7 {[%clk
0:05:23.3]} 28. Nf3 {[%clk 0:01:42.3]} 28... Qb8 {[%clk 0:04:46.9]} 29. Nd5
{[%clk 0:01:31.5]} 29... Bd6 {[%clk 0:04:35.7]} 30. Bd4 {[%clk 0:01:10.6]} 30...
Rfe8 {[%clk 0:04:29.7]} 31. Qa5 {[%clk 0:00:35.9]} 31... Ng3 {[%clk 0:04:23.3]}
32. Rfe1 {[%clk 0:00:27.9]} 32... Ne2+ {[%clk 0:04:17.6]} 33. Rxe2 {[%clk
0:00:24.2]} 33... Rxe2 {[%clk 0:04:17.6]} 34. Qxa6 {[%clk 0:00:20.4]} 34... Re6
{[%clk 0:03:27.3]} 35. Qd3 {[%clk 0:00:18.1]} 35... Rce8 {[%clk 0:03:16.6]} 36.
Bc3 {[%clk 0:00:13.2]} 36... Bc5+ {[%clk 0:03:08.5]} 37. Kh1 {[%clk 0:00:13.3]}
37... Qg3 {[%clk 0:03:04.7]} 38. a3 {[%clk 0:00:11.9]} 38... Re2 {[%clk
0:02:53.2]} 39. Ne1 {[%clk 0:00:03.7]} 39... Rxe1+ {[%clk 0:02:42.3]} 40. Bxe1
{[%clk 0:00:02.2]} 40... Rxe1+ {[%clk 0:02:42.8]} 0-1

[Event "GrandPrix_29.05"]
[Site "Chess.com"]
[Date "2020.05.29"]
[Round "8"]
[White "vladislavkovalev"]
[Black "Tesla37"]
[Result "1-0"]
[WhiteElo "2822"]
[BlackElo "2840"]
[TimeControl "600+2"]
[EndTime "13:01:33 PDT"]
[Termination "vladislavkovalev won by resignation"]

1. e4 {[%clk 0:10:01.9]} 1... Nf6 {[%clk 0:10:00]} 2. e5 {[%clk 0:10:02.8]} 2...
Nd5 {[%clk 0:10:01]} 3. d4 {[%clk 0:10:04.4]} 3... d6 {[%clk 0:10:02.2]} 4. Nf3
{[%clk 0:10:06]} 4... dxe5 {[%clk 0:10:03.3]} 5. Nxe5 {[%clk 0:10:07.9]} 5... c6
{[%clk 0:10:04.8]} 6. Be2 {[%clk 0:10:06.1]} 6... Bf5 {[%clk 0:09:58.5]} 7. O-O
{[%clk 0:10:04.7]} 7... Nd7 {[%clk 0:09:58.7]} 8. c4 {[%clk 0:09:58.8]} 8... Nb4
{[%clk 0:09:40.2]} 9. Nd3 {[%clk 0:09:07]} 9... Nxd3 {[%clk 0:09:02.1]} 10. Bxd3
{[%clk 0:09:08.9]} 10... Bxd3 {[%clk 0:09:03.4]} 11. Qxd3 {[%clk 0:09:10.5]}
11... e6 {[%clk 0:09:04.9]} 12. Be3 {[%clk 0:09:04.7]} 12... Be7 {[%clk
0:09:04.7]} 13. Nc3 {[%clk 0:09:05.2]} 13... O-O {[%clk 0:09:01.1]} 14. Rad1
{[%clk 0:09:01.5]} 14... Nf6 {[%clk 0:09:00.9]} 15. d5 {[%clk 0:08:31]} 15...
exd5 {[%clk 0:08:20.8]} 16. cxd5 {[%clk 0:08:32.9]} 16... Nxd5 {[%clk
0:08:17.7]} 17. Nxd5 {[%clk 0:08:34.8]} 17... cxd5 {[%clk 0:08:18.8]} 18. Qxd5
{[%clk 0:08:36.2]} 18... Qxd5 {[%clk 0:08:09.4]} 19. Rxd5 {[%clk 0:08:38.1]}
19... Rfd8 {[%clk 0:08:05.3]} 20. Rxd8+ {[%clk 0:06:32.7]} 20... Rxd8 {[%clk
0:07:55.3]} 21. Rc1 {[%clk 0:06:27.5]} 21... b6 {[%clk 0:06:56.9]} 22. g3 {[%clk
0:06:06.5]} 22... Bd6 {[%clk 0:06:55.8]} 23. Kf1 {[%clk 0:05:51]} 23... Kf8
{[%clk 0:06:55.7]} 24. Ke2 {[%clk 0:05:51]} 24... Ke7 {[%clk 0:06:55.5]} 25. Rc4
{[%clk 0:05:49]} 25... Rd7 {[%clk 0:06:28.7]} 26. a4 {[%clk 0:05:46.1]} 26...
Ke6 {[%clk 0:05:58.4]} 27. b4 {[%clk 0:05:10.4]} 27... Rc7 {[%clk 0:05:41.8]}
28. Kd3 {[%clk 0:05:08.1]} 28... Kd5 {[%clk 0:04:41.7]} 29. Rd4+ {[%clk
0:05:07.4]} 29... Ke6 {[%clk 0:04:42.3]} 30. Rxd6+ {[%clk 0:04:14.4]} 30... Kxd6
{[%clk 0:04:20.9]} 31. Bf4+ {[%clk 0:04:16.3]} 31... Kd7 {[%clk 0:04:15.4]} 32.
Bxc7 {[%clk 0:04:17.4]} 32... Kxc7 {[%clk 0:04:16.3]} 33. Kc4 {[%clk 0:04:19]}
33... Kc6 {[%clk 0:04:16.1]} 34. g4 {[%clk 0:04:20.2]} 34... a6 {[%clk
0:04:05.4]} 35. Kd4 {[%clk 0:04:21.3]} 35... Kd6 {[%clk 0:04:01.3]} 36. h4
{[%clk 0:03:41]} 36... f6 {[%clk 0:03:39.3]} 37. Ke4 {[%clk 0:03:38.7]} 37... g6
{[%clk 0:03:37]} 38. Kd4 {[%clk 0:03:37.4]} 38... h6 {[%clk 0:03:01.1]} 39. h5
{[%clk 0:03:18]} 39... gxh5 {[%clk 0:02:52.3]} 40. gxh5 {[%clk 0:03:19.9]} 40...
Ke6 {[%clk 0:02:29.8]} 41. a5 {[%clk 0:02:19.9]} 41... bxa5 {[%clk 0:02:28.5]}
42. bxa5 {[%clk 0:02:21.8]} 42... Kd6 {[%clk 0:02:23.6]} 43. Ke4 {[%clk
0:02:06.8]} 43... Kc5 {[%clk 0:01:30.2]} 44. Kf5 {[%clk 0:02:07.7]} 44... Kb4
{[%clk 0:01:31.4]} 45. Kg6 {[%clk 0:01:53.5]} 45... Kxa5 {[%clk 0:01:31.8]} 46.
Kxh6 {[%clk 0:01:53.9]} 46... Kb5 {[%clk 0:01:23.8]} 47. Kg6 {[%clk 0:01:55.7]}
47... a5 {[%clk 0:01:25]} 48. h6 {[%clk 0:01:57.4]} 48... a4 {[%clk 0:01:26.2]}
49. h7 {[%clk 0:01:59.3]} 1-0

[Event "GrandPrix_29.05"]
[Site "Chess.com"]
[Date "2020.05.29"]
[Round "8"]
[White "Arm-Akiba"]
[Black "Anton_Demchenko"]
[Result "1-0"]
[WhiteElo "2890"]
[BlackElo "2649"]
[TimeControl "600+2"]
[EndTime "13:01:34 PDT"]
[Termination "Arm-Akiba won by resignation"]

1. d4 {[%clk 0:10:01.9]} 1... Nf6 {[%clk 0:10:00.6]} 2. c4 {[%clk 0:10:02.8]}
2... d6 {[%clk 0:10:02]} 3. Nf3 {[%clk 0:10:01]} 3... Nc6 {[%clk 0:10:02.2]} 4.
Nc3 {[%clk 0:09:52]} 4... e5 {[%clk 0:10:02.8]} 5. dxe5 {[%clk 0:09:44.8]} 5...
dxe5 {[%clk 0:10:04.7]} 6. Qxd8+ {[%clk 0:09:44.8]} 6... Kxd8 {[%clk 0:10:06.6]}
7. Bg5 {[%clk 0:09:45.5]} 7... Be6 {[%clk 0:10:07.7]} 8. O-O-O+ {[%clk
0:09:15.4]} 8... Kc8 {[%clk 0:10:08.4]} 9. Bxf6 {[%clk 0:09:06.3]} 9... gxf6
{[%clk 0:10:09.2]} 10. e3 {[%clk 0:09:07.8]} 10... f5 {[%clk 0:09:44.3]} 11. g3
{[%clk 0:09:01.9]} 11... e4 {[%clk 0:08:51.9]} 12. Nh4 {[%clk 0:08:47.4]} 12...
Be7 {[%clk 0:08:48.5]} 13. Ng2 {[%clk 0:08:45.4]} 13... Ne5 {[%clk 0:08:44.5]}
14. Nd5 {[%clk 0:08:35.2]} 14... Bd8 {[%clk 0:08:36.1]} 15. Ngf4 {[%clk
0:08:29.3]} 15... c6 {[%clk 0:08:29]} 16. Nxe6 {[%clk 0:08:09]} 16... fxe6
{[%clk 0:08:29]} 17. Nf4 {[%clk 0:08:10.6]} 17... Re8 {[%clk 0:08:28.6]} 18. Rd6
{[%clk 0:07:47.5]} 18... Ng4 {[%clk 0:06:52.6]} 19. Be2 {[%clk 0:07:47.5]} 19...
Nxf2 {[%clk 0:05:42.8]} 20. Rf1 {[%clk 0:07:48.1]} 20... e5 {[%clk 0:05:44.2]}
21. Ng2 {[%clk 0:06:25.9]} 21... Nd3+ {[%clk 0:02:57.8]} 22. Bxd3 {[%clk
0:06:25.6]} 22... exd3 {[%clk 0:02:59.7]} 23. Rxf5 {[%clk 0:06:13.6]} 23... e4
{[%clk 0:03:00.4]} 24. Rf7 {[%clk 0:06:09.3]} 24... h5 {[%clk 0:02:32.3]} 25.
Rdd7 {[%clk 0:05:48]} 25... b5 {[%clk 0:01:12.7]} 26. cxb5 {[%clk 0:05:30.7]}
26... cxb5 {[%clk 0:01:14.6]} 27. Nf4 {[%clk 0:05:31.1]} 27... a5 {[%clk
0:00:34.9]} 28. Rd5 {[%clk 0:04:30.8]} 28... Bb6 {[%clk 0:00:20.8]} 29. Kd2
{[%clk 0:04:27.7]} 29... Rb8 {[%clk 0:00:21.7]} 30. Rdd7 {[%clk 0:04:07.3]}
30... a4 {[%clk 0:00:15.7]} 31. Nd5 {[%clk 0:04:02.1]} 31... Ba5+ {[%clk
0:00:16.5]} 32. Kd1 {[%clk 0:04:02]} 32... Ra8 {[%clk 0:00:18]} 33. Nf6 {[%clk
0:03:54.5]} 33... Rh8 {[%clk 0:00:04.9]} 34. Nxe4 {[%clk 0:03:50.5]} 34... Ra6
{[%clk 0:00:06.2]} 35. Nd6+ {[%clk 0:03:41.3]} 35... Kb8 {[%clk 0:00:07.4]} 36.
Rb7+ {[%clk 0:03:33.9]} 36... Ka8 {[%clk 0:00:08.6]} 37. Nxb5 {[%clk 0:03:35.2]}
37... h4 {[%clk 0:00:09.7]} 38. Ra7+ {[%clk 0:03:33.3]} 38... Rxa7 {[%clk
0:00:10.2]} 39. Rxa7+ {[%clk 0:03:34.7]} 39... Kb8 {[%clk 0:00:11.8]} 40. Rxa5
{[%clk 0:03:36.2]} 40... hxg3 {[%clk 0:00:12.8]} 41. hxg3 {[%clk 0:03:37.3]}
41... Rh2 {[%clk 0:00:13.2]} 42. Nd4 {[%clk 0:03:33.9]} 42... Kc7 {[%clk
0:00:12.9]} 43. Rb5 {[%clk 0:03:25]} 43... Kd6 {[%clk 0:00:13.7]} 44. a3 {[%clk
0:03:24.5]} 44... Rg2 {[%clk 0:00:10.2]} 45. g4 {[%clk 0:03:23.4]} 45... Ke7
{[%clk 0:00:05.1]} 46. g5 {[%clk 0:03:21.4]} 46... Kf7 {[%clk 0:00:04.7]} 47.
Rb6 {[%clk 0:03:21.3]} 47... Rxg5 {[%clk 0:00:03.4]} 48. Kd2 {[%clk 0:03:20.8]}
48... Rg2+ {[%clk 0:00:03.6]} 49. Kxd3 {[%clk 0:03:21.3]} 1-0